[Event "Early-Titled-Tuesday-Blitz-March-19-2024"]
[Site "Chess.com"]
[Date "2024.03.19"]
[Round "7"]
[White "nekotyanof"]
[Black "Zohid6"]
[Result "1-0"]
[WhiteElo "2675"]
[BlackElo "2857"]
[TimeControl "180+1"]
[EndTime "9:19:53 PDT"]
[Termination "nekotyanof won on time"]

1. e4 {[%clk 0:03:00.9]} 1... e5 {[%clk 0:02:58.1]} 2. Nf3 {[%clk 0:03:01.4]}
2... Nf6 {[%clk 0:02:57.7]} 3. Nc3 {[%clk 0:02:58.2]} 3... Nc6 {[%clk
0:02:57.3]} 4. d4 {[%clk 0:02:55.5]} 4... exd4 {[%clk 0:02:58.2]} 5. Nxd4 {[%clk
0:02:56.1]} 5... Bb4 {[%clk 0:02:57.9]} 6. Nxc6 {[%clk 0:02:56.8]} 6... bxc6
{[%clk 0:02:58.7]} 7. Bd3 {[%clk 0:02:57.5]} 7... d5 {[%clk 0:02:58.6]} 8. exd5
{[%clk 0:02:58.2]} 8... O-O {[%clk 0:02:58.4]} 9. O-O {[%clk 0:02:58.5]} 9...
cxd5 {[%clk 0:02:58.9]} 10. h3 {[%clk 0:02:56.6]} 10... c6 {[%clk 0:02:56.8]}
11. Qf3 {[%clk 0:02:57.1]} 11... Bd6 {[%clk 0:02:55]} 12. Bf4 {[%clk 0:02:42.3]}
12... Rb8 {[%clk 0:02:53.8]} 13. b3 {[%clk 0:02:36.6]} 13... Rb4 {[%clk
0:02:51.3]} 14. Bxd6 {[%clk 0:02:31]} 14... Qxd6 {[%clk 0:02:52.2]} 15. Ne2
{[%clk 0:02:24.1]} 15... c5 {[%clk 0:02:35.3]} 16. Rad1 {[%clk 0:02:14.5]} 16...
Rh4 {[%clk 0:01:59.1]} 17. Qg3 {[%clk 0:02:09.4]} 17... Qxg3 {[%clk 0:01:56.6]}
18. fxg3 {[%clk 0:02:04.9]} 18... Rh5 {[%clk 0:01:55.6]} 19. c4 {[%clk
0:01:57.9]} 19... d4 {[%clk 0:01:44.4]} 20. Nf4 {[%clk 0:01:56]} 20... Re5
{[%clk 0:01:43.6]} 21. Rfe1 {[%clk 0:01:56.2]} 21... Rfe8 {[%clk 0:01:43.6]} 22.
Kf2 {[%clk 0:01:56.3]} 22... Kf8 {[%clk 0:01:37.6]} 23. a3 {[%clk 0:01:53.5]}
23... g5 {[%clk 0:01:33.8]} 24. Rxe5 {[%clk 0:01:42.4]} 24... Rxe5 {[%clk
0:01:33.4]} 25. Ne2 {[%clk 0:01:43.1]} 25... a5 {[%clk 0:00:35.5]} 26. g4 {[%clk
0:01:39.4]} 26... Bb7 {[%clk 0:00:30.6]} 27. Ng3 {[%clk 0:01:35.6]} 27... Ke8
{[%clk 0:00:25.7]} 28. Nf5 {[%clk 0:01:29.2]} 28... Kd7 {[%clk 0:00:20.7]} 29.
g3 {[%clk 0:01:29]} 29... Be4 {[%clk 0:00:19.4]} 30. b4 {[%clk 0:01:17.3]} 30...
Bxd3 {[%clk 0:00:11.7]} 31. Rxd3 {[%clk 0:01:17]} 31... axb4 {[%clk 0:00:07.3]}
32. axb4 {[%clk 0:01:16.9]} 32... Kc6 {[%clk 0:00:07.1]} 33. bxc5 {[%clk
0:01:12.3]} 33... Kxc5 {[%clk 0:00:08]} 34. Kf3 {[%clk 0:01:05.5]} 34... h5
{[%clk 0:00:04.2]} 35. Ra3 {[%clk 0:00:56]} 35... hxg4+ {[%clk 0:00:04]} 36.
hxg4 {[%clk 0:00:56.9]} 36... Re8 {[%clk 0:00:03.3]} 37. Ra5+ {[%clk 0:00:56.3]}
37... Kb4 {[%clk 0:00:02.9]} 38. Rb5+ {[%clk 0:00:55]} 38... Kc3 {[%clk
0:00:03.4]} 39. Ra5 {[%clk 0:00:29.8]} 39... d3 {[%clk 0:00:03.8]} 40. Ra3+
{[%clk 0:00:30]} 40... Kd2 {[%clk 0:00:04.2]} 41. c5 {[%clk 0:00:27.8]} 41...
Rc8 {[%clk 0:00:04.3]} 42. Ra5 {[%clk 0:00:23.5]} 42... Kc3 {[%clk 0:00:03.7]}
43. Ra3+ {[%clk 0:00:20.1]} 43... Kd2 {[%clk 0:00:02.4]} 44. Ra5 {[%clk
0:00:19.7]} 44... Nd5 {[%clk 0:00:02.7]} 45. Nd6 {[%clk 0:00:19.7]} 45... Rb8
{[%clk 0:00:02.5]} 46. Ke4 {[%clk 0:00:17.5]} 46... Nc3+ {[%clk 0:00:02.6]} 47.
Kd4 {[%clk 0:00:16.3]} 47... Ne2+ {[%clk 0:00:03.5]} 48. Kc4 {[%clk 0:00:16.8]}
48... Nxg3 {[%clk 0:00:03.9]} 49. c6 {[%clk 0:00:17.4]} 49... Rb1 {[%clk
0:00:03.4]} 50. Kd5 {[%clk 0:00:13.4]} 50... Rc1 {[%clk 0:00:03.4]} 51. Nc4+
{[%clk 0:00:13.9]} 51... Ke1 {[%clk 0:00:02.8]} 52. c7 {[%clk 0:00:14.1]} 52...
d2 {[%clk 0:00:03.4]} 53. Nxd2 {[%clk 0:00:12.9]} 53... Rxc7 {[%clk 0:00:03.5]}
54. Nf3+ {[%clk 0:00:11.1]} 54... Kf2 {[%clk 0:00:03.7]} 55. Nxg5 {[%clk
0:00:12]} 55... Ke3 {[%clk 0:00:03.7]} 56. Ke5 {[%clk 0:00:11.8]} 56... Rb7
{[%clk 0:00:03]} 57. Kf6 {[%clk 0:00:11.3]} 57... Kf2 {[%clk 0:00:01.3]} 58.
Nxf7 {[%clk 0:00:11.1]} 1-0

[Event "Early-Titled-Tuesday-Blitz-March-19-2024"]
[Site "Chess.com"]
[Date "2024.03.19"]
[Round "7"]
[White "TV27"]
[Black "BashiqChess"]
[Result "1-0"]
[WhiteElo "2271"]
[BlackElo "2434"]
[TimeControl "180+1"]
[EndTime "9:19:54 PDT"]
[Termination "TV27 won by resignation"]

1. f4 {[%clk 0:03:00.4]} 1... d5 {[%clk 0:02:55.1]} 2. Nf3 {[%clk 0:02:59.4]}
2... Bf5 {[%clk 0:02:55.4]} 3. e3 {[%clk 0:02:54.3]} 3... e6 {[%clk 0:02:55.8]}
4. b3 {[%clk 0:02:52.3]} 4... Nf6 {[%clk 0:02:56.2]} 5. Bb2 {[%clk 0:02:52.1]}
5... Be7 {[%clk 0:02:56.7]} 6. c4 {[%clk 0:02:51.9]} 6... c6 {[%clk 0:02:56.5]}
7. Nc3 {[%clk 0:02:51.5]} 7... h6 {[%clk 0:02:56.9]} 8. Be2 {[%clk 0:02:51]}
8... Na6 {[%clk 0:02:57.2]} 9. O-O {[%clk 0:02:50.3]} 9... Nb4 {[%clk
0:02:57.3]} 10. a3 {[%clk 0:02:47.4]} 10... Nd3 {[%clk 0:02:57.3]} 11. Ra2
{[%clk 0:02:42.1]} 11... Nxb2 {[%clk 0:02:55.9]} 12. Rxb2 {[%clk 0:02:41.8]}
12... Bxa3 {[%clk 0:02:56.4]} 13. Ra2 {[%clk 0:02:41]} 13... Bb4 {[%clk
0:02:55.3]} 14. Ne5 {[%clk 0:02:36.6]} 14... Bxc3 {[%clk 0:02:54.7]} 15. dxc3
{[%clk 0:02:36.4]} 15... O-O {[%clk 0:02:54.5]} 16. c5 {[%clk 0:02:35.4]} 16...
Ne4 {[%clk 0:02:53.7]} 17. Qd4 {[%clk 0:02:30.3]} 17... f6 {[%clk 0:02:40]} 18.
Nd3 {[%clk 0:02:28.6]} 18... Nd2 {[%clk 0:02:35.3]} 19. Rxd2 {[%clk 0:02:26.3]}
19... Qc7 {[%clk 0:02:21.3]} 20. g4 {[%clk 0:02:21.6]} 20... Be4 {[%clk
0:02:19.5]} 21. Nf2 {[%clk 0:02:20.1]} 21... e5 {[%clk 0:02:19.1]} 22. fxe5
{[%clk 0:02:14.2]} 22... fxe5 {[%clk 0:02:20]} 23. Qa4 {[%clk 0:02:11.2]} 23...
Bg6 {[%clk 0:02:18.4]} 24. g5 {[%clk 0:02:00.7]} 24... hxg5 {[%clk 0:02:17.6]}
25. Qg4 {[%clk 0:01:58.5]} 25... Qe7 {[%clk 0:02:17.1]} 26. Nh3 {[%clk
0:01:56.6]} 26... Rxf1+ {[%clk 0:02:16.1]} 27. Bxf1 {[%clk 0:01:55.6]} 27...
Qxc5 {[%clk 0:02:10.7]} 28. Qxg5 {[%clk 0:01:49.8]} 28... Qxc3 {[%clk
0:02:00.1]} 29. Rg2 {[%clk 0:01:47.1]} 29... Rf8 {[%clk 0:01:57.2]} 30. Qxg6
{[%clk 0:01:39.9]} 30... Qxe3+ {[%clk 0:01:57.3]} 31. Nf2 {[%clk 0:01:39.5]}
31... Rf7 {[%clk 0:01:49.4]} 32. h4 {[%clk 0:01:38.7]} 32... Qc5 {[%clk
0:01:08.6]} 33. h5 {[%clk 0:01:37.1]} 33... Kf8 {[%clk 0:01:09.1]} 34. h6 {[%clk
0:01:36.2]} 34... gxh6 {[%clk 0:01:10]} 35. Qxh6+ {[%clk 0:01:35.8]} 35... Ke7
{[%clk 0:01:05.2]} 36. Qh4+ {[%clk 0:01:32.2]} 36... Kd7 {[%clk 0:01:03.1]} 37.
Rg8 {[%clk 0:01:27.9]} 37... Rf8 {[%clk 0:00:52.6]} 38. Qh7+ {[%clk 0:01:17.7]}
38... Qe7 {[%clk 0:00:49]} 39. Bh3+ {[%clk 0:01:11.2]} 39... Kd6 {[%clk
0:00:42.8]} 40. Rg6+ {[%clk 0:01:01.5]} 40... Rf6 {[%clk 0:00:41.5]} 41. Rg7
{[%clk 0:00:42]} 41... Qe8 {[%clk 0:00:12.2]} 42. Nd3 {[%clk 0:00:39.7]} 42...
c5 {[%clk 0:00:02.6]} 43. Rd7+ {[%clk 0:00:38.7]} 43... Kc6 {[%clk 0:00:02.6]}
44. Rc7+ {[%clk 0:00:38.4]} 44... Kd6 {[%clk 0:00:03.2]} 45. Qd7+ {[%clk
0:00:22.5]} 45... Qxd7 {[%clk 0:00:03.5]} 46. Rxd7+ {[%clk 0:00:22.5]} 46... Kc6
{[%clk 0:00:04.2]} 47. Nxe5+ {[%clk 0:00:22]} 47... Kb6 {[%clk 0:00:04.8]} 48.
Bg2 {[%clk 0:00:18]} 48... Rf5 {[%clk 0:00:03.1]} 49. Rxd5 {[%clk 0:00:17]}
49... Ka6 {[%clk 0:00:02]} 50. Rxc5 {[%clk 0:00:16]} 50... b6 {[%clk 0:00:02.6]}
51. Rd5 {[%clk 0:00:15.8]} 51... Rg5 {[%clk 0:00:02.7]} 52. Nd3 {[%clk
0:00:15.1]} 52... b5 {[%clk 0:00:02.1]} 53. Rxg5 {[%clk 0:00:14.6]} 53... Ka5
{[%clk 0:00:02.7]} 54. Ne5 {[%clk 0:00:13.9]} 54... Kb4 {[%clk 0:00:03.1]} 55.
Rg3 {[%clk 0:00:13.7]} 55... a5 {[%clk 0:00:04]} 56. Nc6+ {[%clk 0:00:13.4]}
56... Kc5 {[%clk 0:00:04.4]} 57. Nxa5 {[%clk 0:00:13.3]} 57... Kb6 {[%clk
0:00:05.3]} 1-0

[Event "Early-Titled-Tuesday-Blitz-March-19-2024"]
[Site "Chess.com"]
[Date "2024.03.19"]
[Round "7"]
[White "azikom"]
[Black "kleber2007"]
[Result "1/2-1/2"]
[WhiteElo "2614"]
[BlackElo "2476"]
[TimeControl "180+1"]
[EndTime "9:19:57 PDT"]
[Termination "Game drawn by repetition"]

1. c4 {[%clk 0:03:00]} 1... e6 {[%clk 0:02:58.4]} 2. e4 {[%clk 0:02:58.7]} 2...
d5 {[%clk 0:02:57.1]} 3. exd5 {[%clk 0:02:58.7]} 3... exd5 {[%clk 0:02:58]} 4.
cxd5 {[%clk 0:02:59.5]} 4... Nf6 {[%clk 0:02:57.7]} 5. Bb5+ {[%clk 0:02:58.5]}
5... Nbd7 {[%clk 0:02:47.7]} 6. Nc3 {[%clk 0:02:56.5]} 6... Bd6 {[%clk
0:02:41.1]} 7. d4 {[%clk 0:02:56.1]} 7... O-O {[%clk 0:02:41.5]} 8. Nf3 {[%clk
0:02:56.5]} 8... Nb6 {[%clk 0:02:40.6]} 9. O-O {[%clk 0:02:55.5]} 9... Nbxd5
{[%clk 0:02:39.3]} 10. Bg5 {[%clk 0:02:55]} 10... Bf4 {[%clk 0:02:33.9]} 11. Bh4
{[%clk 0:02:52.3]} 11... Bg4 {[%clk 0:02:31.9]} 12. h3 {[%clk 0:02:50.5]} 12...
Bh5 {[%clk 0:02:31.4]} 13. Bc4 {[%clk 0:02:44.2]} 13... c6 {[%clk 0:02:25.5]}
14. Qd3 {[%clk 0:02:30.1]} 14... Bg6 {[%clk 0:02:16.2]} 15. Qd1 {[%clk
0:02:27.7]} 15... Qd6 {[%clk 0:02:04.3]} 16. Re1 {[%clk 0:02:20.3]} 16... Rfe8
{[%clk 0:02:01.9]} 17. Qb3 {[%clk 0:02:17.1]} 17... b5 {[%clk 0:01:58]} 18. Bf1
{[%clk 0:02:11.6]} 18... Nxc3 {[%clk 0:01:46.8]} 19. bxc3 {[%clk 0:02:11.1]}
19... Nd5 {[%clk 0:01:45.7]} 20. a4 {[%clk 0:02:05.9]} 20... a6 {[%clk
0:01:42.9]} 21. c4 {[%clk 0:02:01.6]} 21... bxc4 {[%clk 0:01:41.5]} 22. Bxc4
{[%clk 0:02:02.5]} 22... a5 {[%clk 0:01:32.4]} 23. Rxe8+ {[%clk 0:01:43.9]}
23... Rxe8 {[%clk 0:01:31.2]} 24. Qb7 {[%clk 0:01:42]} 24... Bh5 {[%clk
0:01:16.1]} 25. Ne5 {[%clk 0:01:36.8]} 25... Bxe5 {[%clk 0:01:11.4]} 26. dxe5
{[%clk 0:01:37.7]} 26... Qxe5 {[%clk 0:01:11.5]} 27. Rb1 {[%clk 0:01:05.5]}
27... Nb4 {[%clk 0:01:11.2]} 28. Bg3 {[%clk 0:00:59.6]} 28... Qe4 {[%clk
0:01:05.1]} 29. Rc1 {[%clk 0:00:59]} 29... Be2 {[%clk 0:00:55.2]} 30. Bxe2
{[%clk 0:00:54.4]} 30... Qxe2 {[%clk 0:00:54.7]} 31. Qd7 {[%clk 0:00:53.2]}
31... Qe6 {[%clk 0:00:50.7]} 32. Qc7 {[%clk 0:00:51.8]} 32... Qd5 {[%clk
0:00:46.1]} 33. Kh2 {[%clk 0:00:41.5]} 33... h5 {[%clk 0:00:45.6]} 34. Qb6
{[%clk 0:00:36.9]} 34... Nd3 {[%clk 0:00:27.8]} 35. Rxc6 {[%clk 0:00:35.2]}
35... Re4 {[%clk 0:00:25.2]} 36. Rc8+ {[%clk 0:00:33]} 36... Kh7 {[%clk
0:00:25.1]} 37. Qb8 {[%clk 0:00:32]} 37... h4 {[%clk 0:00:24]} 38. Rh8+ {[%clk
0:00:31.3]} 38... Kg6 {[%clk 0:00:24]} 39. Bxh4 {[%clk 0:00:28.9]} 39... Qe5+
{[%clk 0:00:21.7]} 40. Qxe5 {[%clk 0:00:25.8]} 40... Nxe5 {[%clk 0:00:22.2]} 41.
Bg3 {[%clk 0:00:22.1]} 41... f6 {[%clk 0:00:22]} 42. Ra8 {[%clk 0:00:20.5]}
42... Rxa4 {[%clk 0:00:22]} 43. Bxe5 {[%clk 0:00:19.8]} 43... fxe5 {[%clk
0:00:21.8]} 44. Ra6+ {[%clk 0:00:20.1]} 44... Kf5 {[%clk 0:00:21.5]} 45. Ra7
{[%clk 0:00:20.7]} 45... g5 {[%clk 0:00:21]} 46. g4+ {[%clk 0:00:20.6]} 46...
Kf6 {[%clk 0:00:20.9]} 47. Ra6+ {[%clk 0:00:20.1]} 47... Kf7 {[%clk 0:00:20.9]}
48. Kg2 {[%clk 0:00:20.1]} 48... Ra3 {[%clk 0:00:20.3]} 49. f3 {[%clk
0:00:19.9]} 49... a4 {[%clk 0:00:20.2]} 50. Kf2 {[%clk 0:00:19.9]} 50... Ra1
{[%clk 0:00:17.5]} 51. Ra5 {[%clk 0:00:17.2]} 51... Ke6 {[%clk 0:00:16.6]} 52.
Kg2 {[%clk 0:00:16.4]} 52... a3 {[%clk 0:00:16.3]} 53. Ra6+ {[%clk 0:00:16.3]}
53... Kf7 {[%clk 0:00:15.4]} 54. Kg3 {[%clk 0:00:16.4]} 54... a2 {[%clk
0:00:14.6]} 55. Kg2 {[%clk 0:00:16.6]} 55... Kg7 {[%clk 0:00:14.5]} 56. Ra5
{[%clk 0:00:16.3]} 56... Kf6 {[%clk 0:00:14.7]} 57. Ra4 {[%clk 0:00:16.8]} 57...
Ke6 {[%clk 0:00:14.7]} 58. Ra5 {[%clk 0:00:16.3]} 58... Kd6 {[%clk 0:00:14.6]}
59. Ra6+ {[%clk 0:00:16.3]} 59... Ke7 {[%clk 0:00:14.4]} 60. Ra8 {[%clk
0:00:16.2]} 60... Kf6 {[%clk 0:00:14.5]} 61. Ra4 {[%clk 0:00:15.5]} 61... Ke6
{[%clk 0:00:14.6]} 62. Ra3 {[%clk 0:00:15.4]} 62... Kd5 {[%clk 0:00:14.6]} 63.
Ra4 {[%clk 0:00:15.3]} 63... Ke6 {[%clk 0:00:14.6]} 1/2-1/2

[Event "Early-Titled-Tuesday-Blitz-March-19-2024"]
[Site "Chess.com"]
[Date "2024.03.19"]
[Round "7"]
[White "JonasEilenberg"]
[Black "LeoWin2012"]
[Result "1-0"]
[WhiteElo "2573"]
[BlackElo "2230"]
[TimeControl "180+1"]
[EndTime "9:19:59 PDT"]
[Termination "JonasEilenberg won on time"]

1. d4 {[%clk 0:03:00.9]} 1... Nf6 {[%clk 0:02:58]} 2. Nf3 {[%clk 0:03:00.5]}
2... g6 {[%clk 0:02:58.3]} 3. Nbd2 {[%clk 0:02:54.8]} 3... Bg7 {[%clk 0:02:56]}
4. e4 {[%clk 0:02:54.6]} 4... d6 {[%clk 0:02:55.2]} 5. Bd3 {[%clk 0:02:55.2]}
5... Nbd7 {[%clk 0:02:54.4]} 6. O-O {[%clk 0:02:55.7]} 6... e5 {[%clk
0:02:54.5]} 7. c3 {[%clk 0:02:55.9]} 7... O-O {[%clk 0:02:53.3]} 8. Re1 {[%clk
0:02:56.5]} 8... Re8 {[%clk 0:02:52.7]} 9. a4 {[%clk 0:02:56.7]} 9... exd4
{[%clk 0:02:36.8]} 10. cxd4 {[%clk 0:02:56.1]} 10... c5 {[%clk 0:02:32.5]} 11.
d5 {[%clk 0:02:47.5]} 11... Nb6 {[%clk 0:02:27.2]} 12. a5 {[%clk 0:02:47.1]}
12... Nbd7 {[%clk 0:02:24.3]} 13. Nc4 {[%clk 0:02:47]} 13... Qc7 {[%clk
0:02:22.9]} 14. Bf4 {[%clk 0:02:45.3]} 14... Ne5 {[%clk 0:02:20.2]} 15. Nfxe5
{[%clk 0:02:45.3]} 15... dxe5 {[%clk 0:02:21.1]} 16. d6 {[%clk 0:02:46.2]} 16...
Qc6 {[%clk 0:02:17.2]} 17. Bxe5 {[%clk 0:02:46.3]} 17... Be6 {[%clk 0:02:13.9]}
18. Bxf6 {[%clk 0:02:32.5]} 18... Bxf6 {[%clk 0:02:01.1]} 19. e5 {[%clk
0:02:18.1]} 19... Bxc4 {[%clk 0:01:56.3]} 20. Bxc4 {[%clk 0:02:17.9]} 20... Bxe5
{[%clk 0:01:55.5]} 21. Bd5 {[%clk 0:02:18.2]} 21... Qxd6 {[%clk 0:01:52.8]} 22.
Qf3 {[%clk 0:02:03.7]} 22... Re7 {[%clk 0:01:38.9]} 23. a6 {[%clk 0:02:00.5]}
23... Rae8 {[%clk 0:01:29.6]} 24. g3 {[%clk 0:01:47.7]} 24... b6 {[%clk
0:01:26.9]} 25. Rad1 {[%clk 0:01:46.3]} 25... Qc7 {[%clk 0:01:20.9]} 26. Kg2
{[%clk 0:01:46.4]} 26... Kg7 {[%clk 0:01:08.4]} 27. b3 {[%clk 0:01:42]} 27...
Bd4 {[%clk 0:01:03.6]} 28. Rxe7 {[%clk 0:01:34.8]} 28... Rxe7 {[%clk 0:01:04.3]}
29. Bc4 {[%clk 0:01:33.9]} 29... Be5 {[%clk 0:00:59.3]} 30. h4 {[%clk
0:01:14.2]} 30... Rd7 {[%clk 0:00:44.3]} 31. Re1 {[%clk 0:01:11.9]} 31... Bf6
{[%clk 0:00:39.3]} 32. h5 {[%clk 0:01:11.3]} 32... Re7 {[%clk 0:00:35.2]} 33.
Rh1 {[%clk 0:00:26.1]} 33... Qe5 {[%clk 0:00:31.4]} 34. hxg6 {[%clk 0:00:23.7]}
34... fxg6 {[%clk 0:00:30.3]} 35. Rd1 {[%clk 0:00:21.1]} 35... Qe4 {[%clk
0:00:23]} 36. Rd6 {[%clk 0:00:20.3]} 36... Qxf3+ {[%clk 0:00:21.3]} 37. Kxf3
{[%clk 0:00:21.2]} 37... Be5 {[%clk 0:00:19.6]} 38. Rd8 {[%clk 0:00:20.9]} 38...
h5 {[%clk 0:00:16.1]} 39. Rg8+ {[%clk 0:00:20.6]} 39... Kh6 {[%clk 0:00:15.7]}
40. Bd3 {[%clk 0:00:20.1]} 40... Rf7+ {[%clk 0:00:13.7]} 41. Kg2 {[%clk
0:00:20.3]} 41... Rg7 {[%clk 0:00:09.4]} 42. Rh8+ {[%clk 0:00:20.7]} 42... Rh7
{[%clk 0:00:08.3]} 43. Re8 {[%clk 0:00:21.1]} 43... Bd4 {[%clk 0:00:07.6]} 44.
Re6 {[%clk 0:00:21.4]} 44... Rg7 {[%clk 0:00:07.8]} 45. f4 {[%clk 0:00:21.7]}
45... Kh7 {[%clk 0:00:05.1]} 46. Kf3 {[%clk 0:00:22]} 46... Kh8 {[%clk
0:00:04.8]} 47. Bxg6 {[%clk 0:00:21.3]} 47... b5 {[%clk 0:00:03.7]} 48. Bxh5
{[%clk 0:00:21.5]} 48... c4 {[%clk 0:00:04.2]} 49. bxc4 {[%clk 0:00:20.4]} 49...
bxc4 {[%clk 0:00:05.1]} 50. Rc6 {[%clk 0:00:20.7]} 50... c3 {[%clk 0:00:05.3]}
51. Bg4 {[%clk 0:00:20.3]} 51... Re7 {[%clk 0:00:04.6]} 52. Bf5 {[%clk
0:00:18.9]} 52... Kg7 {[%clk 0:00:04.9]} 53. Kg4 {[%clk 0:00:17.4]} 53... Re3
{[%clk 0:00:05.2]} 54. Rc7+ {[%clk 0:00:17.3]} 54... Kf6 {[%clk 0:00:05.2]} 55.
Rc6+ {[%clk 0:00:17]} 55... Kg7 {[%clk 0:00:05.5]} 56. Kh4 {[%clk 0:00:16.4]}
56... Rf3 {[%clk 0:00:04.6]} 57. g4 {[%clk 0:00:15.4]} 57... Rxf4 {[%clk
0:00:04.4]} 58. Kg5 {[%clk 0:00:15.8]} 58... Rf2 {[%clk 0:00:04.1]} 59. Rc7+
{[%clk 0:00:15.5]} 59... Kf8 {[%clk 0:00:04.5]} 60. Kg6 {[%clk 0:00:15.9]} 60...
Rg2 {[%clk 0:00:02.4]} 61. Be4 {[%clk 0:00:13.3]} 61... Rxg4+ {[%clk 0:00:01.2]}
62. Kf5 {[%clk 0:00:13.4]} 62... Rg3 {[%clk 0:00:01.7]} 63. Ke6 {[%clk
0:00:13.4]} 1-0

[Event "Early-Titled-Tuesday-Blitz-March-19-2024"]
[Site "Chess.com"]
[Date "2024.03.19"]
[Round "7"]
[White "Chess_Gainz"]
[Black "arenal72"]
[Result "1-0"]
[WhiteElo "2550"]
[BlackElo "2649"]
[TimeControl "180+1"]
[EndTime "9:20:01 PDT"]
[Termination "Chess_Gainz won by resignation"]

1. e4 {[%clk 0:03:00.9]} 1... Nc6 {[%clk 0:02:57.8]} 2. Nf3 {[%clk 0:03:00.4]}
2... d6 {[%clk 0:02:57.5]} 3. d4 {[%clk 0:03:00.4]} 3... Nf6 {[%clk 0:02:57.2]}
4. Nc3 {[%clk 0:03:00.7]} 4... g6 {[%clk 0:02:57.2]} 5. h3 {[%clk 0:03:00.7]}
5... Bg7 {[%clk 0:02:57.4]} 6. Bg5 {[%clk 0:03:01.3]} 6... O-O {[%clk
0:02:53.9]} 7. d5 {[%clk 0:02:58.7]} 7... Nb8 {[%clk 0:02:50.3]} 8. Qd2 {[%clk
0:02:58.8]} 8... a6 {[%clk 0:02:49.6]} 9. Bh6 {[%clk 0:02:58.5]} 9... b5 {[%clk
0:02:49.1]} 10. Bd3 {[%clk 0:02:52.4]} 10... c5 {[%clk 0:02:46.7]} 11. dxc6
{[%clk 0:02:49]} 11... Nxc6 {[%clk 0:02:44.9]} 12. O-O-O {[%clk 0:02:40.1]}
12... Qa5 {[%clk 0:02:37]} 13. Kb1 {[%clk 0:02:28.9]} 13... Be6 {[%clk
0:02:34.7]} 14. Bxg7 {[%clk 0:02:23.4]} 14... Kxg7 {[%clk 0:02:30.6]} 15. Ng5
{[%clk 0:02:14]} 15... b4 {[%clk 0:02:03.5]} 16. Nxe6+ {[%clk 0:02:13.5]} 16...
fxe6 {[%clk 0:02:04.4]} 17. Ne2 {[%clk 0:02:13.4]} 17... Nd7 {[%clk 0:02:02]}
18. f4 {[%clk 0:02:04.6]} 18... Nc5 {[%clk 0:01:51.6]} 19. g4 {[%clk 0:01:55.6]}
19... Rab8 {[%clk 0:01:46.9]} 20. h4 {[%clk 0:01:40.6]} 20... Na4 {[%clk
0:01:45.7]} 21. Ka1 {[%clk 0:01:41.1]} 21... e5 {[%clk 0:01:33.6]} 22. f5 {[%clk
0:01:31.2]} 22... Nd4 {[%clk 0:01:30.8]} 23. h5 {[%clk 0:01:06.1]} 23... gxf5
{[%clk 0:00:51.4]} 24. gxf5 {[%clk 0:00:45.6]} 24... Nxe2 {[%clk 0:00:49.4]} 25.
Bxe2 {[%clk 0:00:22.5]} 25... Nc3 {[%clk 0:00:17.3]} 26. bxc3 {[%clk 0:00:22.5]}
26... bxc3 {[%clk 0:00:17.5]} 27. Qg5+ {[%clk 0:00:23.4]} 27... Kf7 {[%clk
0:00:11]} 28. Bc4+ {[%clk 0:00:18]} 28... Ke8 {[%clk 0:00:10.1]} 29. Bb3 {[%clk
0:00:13.3]} 29... Qa3 {[%clk 0:00:07.6]} 30. Rb1 {[%clk 0:00:08.8]} 30... Kd8
{[%clk 0:00:06.1]} 31. Qe3 {[%clk 0:00:06.2]} 31... Qb4 {[%clk 0:00:01.9]} 32.
Rhd1 {[%clk 0:00:05.4]} 32... Rb7 {[%clk 0:00:01.5]} 33. Qd3 {[%clk 0:00:03.2]}
33... Qc5 {[%clk 0:00:01.6]} 34. Qxa6 {[%clk 0:00:02.8]} 34... Kc7 {[%clk
0:00:02.3]} 35. Qc4 {[%clk 0:00:02.8]} 35... Rfb8 {[%clk 0:00:02.8]} 36. Qxc5+
{[%clk 0:00:02.9]} 36... dxc5 {[%clk 0:00:03.7]} 37. Rd3 {[%clk 0:00:03.1]}
37... c4 {[%clk 0:00:03.2]} 38. Rxc3 {[%clk 0:00:03.5]} 38... Kd6 {[%clk
0:00:03.6]} 39. Rxc4 {[%clk 0:00:03.6]} 39... Kd7 {[%clk 0:00:03.3]} 40. Rc3
{[%clk 0:00:04.2]} 40... Ke8 {[%clk 0:00:03.5]} 41. Rd1 {[%clk 0:00:05.1]} 41...
Kf8 {[%clk 0:00:03.7]} 42. Rg3 {[%clk 0:00:05.8]} 42... e6 {[%clk 0:00:02.9]}
43. Rg8+ {[%clk 0:00:06.7]} 43... Kxg8 {[%clk 0:00:02.6]} 44. Bxe6+ {[%clk
0:00:07.2]} 44... Kf8 {[%clk 0:00:03.3]} 45. Rg1 {[%clk 0:00:07.1]} 45... Ke7
{[%clk 0:00:03.1]} 46. c4 {[%clk 0:00:07.5]} 46... Kf6 {[%clk 0:00:03.4]} 47.
Rc1 {[%clk 0:00:07]} 47... Rc7 {[%clk 0:00:03.6]} 48. c5 {[%clk 0:00:07.5]}
48... Rb5 {[%clk 0:00:03.9]} 49. c6 {[%clk 0:00:07.3]} 49... Rb4 {[%clk
0:00:04.4]} 50. Bd5 {[%clk 0:00:08.2]} 50... Rd4 {[%clk 0:00:04.6]} 51. Kb2
{[%clk 0:00:07.9]} 51... Ke7 {[%clk 0:00:04.8]} 52. Kc3 {[%clk 0:00:07.6]} 52...
Kd6 {[%clk 0:00:05.5]} 53. Ra1 {[%clk 0:00:06.4]} 53... Ra7 {[%clk 0:00:05.8]}
54. a4 {[%clk 0:00:06.5]} 54... Raxa4 {[%clk 0:00:05.8]} 55. Rxa4 {[%clk
0:00:06.6]} 55... Rxa4 {[%clk 0:00:06.7]} 56. Kb3 {[%clk 0:00:07.4]} 56... Rd4
{[%clk 0:00:05.7]} 57. Kc3 {[%clk 0:00:07.9]} 57... h6 {[%clk 0:00:06.1]} 58. f6
{[%clk 0:00:08.3]} 58... Rd1 {[%clk 0:00:06.1]} 59. f7 {[%clk 0:00:08.8]} 59...
Rf1 {[%clk 0:00:06.2]} 60. Kc4 {[%clk 0:00:09.4]} 60... Rf4 {[%clk 0:00:05.8]}
61. Kb5 {[%clk 0:00:09.5]} 61... Kc7 {[%clk 0:00:06.2]} 62. Kc5 {[%clk
0:00:09.3]} 62... Rf1 {[%clk 0:00:06.7]} 63. Be6 {[%clk 0:00:09.1]} 63... Rf4
{[%clk 0:00:05.7]} 64. Bf5 {[%clk 0:00:09.3]} 64... Rxf5 {[%clk 0:00:02.2]} 65.
exf5 {[%clk 0:00:09.7]} 65... e4 {[%clk 0:00:03.1]} 66. f8=Q {[%clk 0:00:09.9]}
66... e3 {[%clk 0:00:04]} 67. Qe7+ {[%clk 0:00:10.2]} 1-0